Cogmind - Beta 10.2 @@@ ROGUE MODE // 2021.09.27 @ 02:01:32 Player: User Result: Destroyed by as-31703 with Assembled Rifle Performance ------------- Evolutions (0) 0 Regions Visited (4) 800 Robots Destroyed (1) 5 Value Destroyed (53) 53 Prototype IDs (6) 120 Alien Tech Used (0) 0 Bonus (300) 300 TOTAL SCORE: 1278 Bonus ------- Aligned with FarCom 300 Cogmind --------- Core Integrity 0/250 Matter 65/300 Energy 100/100 System Corruption 0% Temperature Cool (0) Movement Core (150) Ox2 Location -9/Mines Parts ------- > --- POWER (1) -------- (None) > --- PROPULSION (2) --- (None) > --- UTILITY (2) ------ Medium Storage Unit > --- WEAPON (2) ------- (None) > --- INVENTORY (8) ---- Flying Fortress v7 Peak State ------------ > --- POWER ------------ (None) > --- PROPULSION ------- Aluminum Leg Flight Unit > --- UTILITY ---------- Medium Storage Unit > --- WEAPON ----------- Heavy EM Pulse Gun Heavy Assault Rifle > --- INVENTORY -------- Flying Fortress v7 [Rating: 10] Favorites ----------- Power None Propulsion Flight Unit Leg Aluminum Leg Flight Unit Flight Unit Utility Medium Storage Unit Storage Medium Storage Unit Weapon Mining Laser Energy Gun Heavy EM Pulse Gun Energy Cannon Beam Cannon Ballistic Gun Heavy Assault Rifle Special Weapon Mining Laser Build | -11 -10 -10 -10 -9 ------- Run | Scr Mat Min Exi Min Slots Evolved . | . . . . . Power . | . . . . . Propulsion . | . . . . . Utility . | . . . . . Weapon . | . . . . . Parts Attached 9 | . 4 . 2 3 Power . | . . . . . Engine . | . . . . . Core . | . . . . . Reactor . | . . . . . Propulsion 2 | . 1 . 1 . Treads . | . . . . . Leg 1 | . . . 1 . Wheel . | . . . . . Hover . | . . . . . Flight 1 | . 1 . . . Utility 1 | . . . 1 . Device . | . . . . . Storage 1 | . . . 1 . Processor . | . . . . . Hackware . | . . . . . Protection . | . . . . . Artifact . | . . . . . Weapon 6 | . 3 . . 3 Energy Gun 1 | . . . . 1 Energy Cannon 3 | . 3 . . . Ballistic Gun 1 | . . . . 1 Ballistic Cannon . | . . . . . Launcher . | . . . . . Special Weapon 1 | . . . . 1 Impact Weapon . | . . . . . Slashing Weapon . | . . . . . Piercing Weapon . | . . . . . Special Melee Weapon . | . . . . . Unidentified Prototypes . | . . . . . Parts Lost 7 | . 2 . . 5 Power . | . . . . . Propulsion 2 | . . . . 2 Utility . | . . . . . Weapon 5 | . 2 . . 3 Highest Loss Streak 5 | . 2 . . 5 Average Slot Usage (%) 36 | . 18 14 28 53 Leg 7 | . . . 5 12 Flight 13 | . 11 14 14 12 Storage 9 | . . . 8 14 Energy Cannon 1 | . 7 . . . Special Weapon 4 | . . . . 11 Naked Turns 24 | . 24 . . . Heaviest Build 11 | . 3 . 8 11 Greatest Support 10 | 3 4 4 10 10 Greatest Overweight (x) 3 | . . . 1 3 Average Overweight (x) . | . . . . . Largest Inventory Capacity 8 | 4 4 4 8 8 Average Capacity 6 | 4 4 4 6 8 Most Carried 6 | . 4 3 5 6 Average Carried 4 | . 2 3 3 5 Final Capacity 8 | 4 4 4 8 8 Final Carried 4 | . 3 3 4 4 Class Distribution -------------------- 100% | Mutant Dominant Class ---------------- Mutant | -10/Materials Mutant | -10/Mines Mutant | -10/Exiles Mutant | -9/Mines Resources | -11 -10 -10 -10 -9 ----------- Run | Scr Mat Min Exi Min Matter Collected 35 | . . . . 35 Remotely . | . . . . . Salvage Created . | . . . . . Parts . | . . . . . Haulers Intercepted . | . . . . . Recyclers Shooed . | . . . . . Parts Field Recycled . | . . . . . Retrieved Matter . | . . . . . Parts Self-Destructed . | . . . . . Prevented . | . . . . . Kills | -11 -10 -10 -10 -9 ------- Run | Scr Mat Min Exi Min Combat Hostiles Destroyed 1 | . . . . 1 Guns 1 | . . . . 1 Classes Destroyed 1 | . . . . 1 Demolisher 1 | . . . . 1 Best Kill Streak 1 | . . . . 1 Combat Bots Only 1 | . . . . 1 Max Kills in Single Turn 1 | . . . . 1 Gunslinging . | . . . . . Exploded . | . . . . . Melee . | . . . . . Uniques/NPCs Destroyed . | . . . . . Combat | -11 -10 -10 -10 -9 -------- Run | Scr Mat Min Exi Min Damage Taken 651 | . 181 . . 470 Core 250 | . 33 . . 217 Absorbed by Shields . | . . . . . Core Remaining (%) 100 | 100 . . . . Volleys Fired 15 | . 10 . . 5 Largest 2 | . 2 . . 2 Hottest 120 | . 120 . . 68 Shots Fired 18 | . 11 . . 7 Gun 7 | . . . . 7 Cannon 11 | . 11 . . . Launcher . | . . . . . Special . | . . . . . Kinetic 5 | . . . . 5 Thermal 11 | . 11 . . . Explosive . | . . . . . Electromagnetic 2 | . . . . 2 Robot Hit Streak 7 | . 2 . . 7 Robot Miss Streak 2 | . 1 . . 2 Penetration Max . | . . . . . Secondary Targets . | . . . . . Shots Hit Robots 12 | . 7 . . 5 Core Hits 2 | . . . . 2 Critical Hits 1 | . 1 . . . Critical Kills . | . . . . . Critical Parts Destroyed 1 | . 1 . . . Melee Attacks . | . . . . . Impact . | . . . . . Slashing . | . . . . . Piercing . | . . . . . Sneak Attacks . | . . . . . Combat Hostiles . | . . . . . Follow-up Attacks . | . . . . . Damage Inflicted 189 | . 122 . . 67 Guns 67 | . . . . 67 Cannons 122 | . 122 . . . Explosions . | . . . . . Melee . | . . . . . Ramming . | . . . . . Kinetic 42 | . . . . 42 Thermal 122 | . 122 . . . Explosive . | . . . . . Electromagnetic 25 | . . . . 25 Impact . | . . . . . Slashing . | . . . . . Piercing . | . . . . . Highest Corruption . | . . . . . Average Corruption . | . . . . . Corruption Purged . | . . . . . Overload Shots . | . . . . . Overflow Damage 8 | . 8 . . . Projectiles 8 | . 8 . . . Explosions . | . . . . . Melee . | . . . . . Knockbacks . | . . . . . Impact . | . . . . . Kinetic . | . . . . . Secondary . | . . . . . Self-Inflicted Damage . | . . . . . Shots . | . . . . . Rammed . | . . . . . Targets Rammed . | . . . . . Kicked . | . . . . . Crushed . | . . . . . Highest Temperature 108 | . 108 . . . Average Temperature 53 | . 53 . . . Received Heat Transfer 122 | . 102 . . 20 Siege Activations . | . . . . . Robots Corrupted . | . . . . . Combat Hostiles . | . . . . . Parts Fried . | . . . . . Impact Corruptions . | . . . . . Robots Melted . | . . . . . Combat Hostiles . | . . . . . Parts Melted . | . . . . . Heat Transferred 259 | . 259 . . . Parts Sabotaged . | . . . . . Parts Stolen . | . . . . . Parts Stripped . | . . . . . Power Chain Reactions . | . . . . . Missiles Intercepted . | . . . . . Alert | -11 -10 -10 -10 -9 ------- Run | Scr Mat Min Exi Min Peak Influence 39 | . 39 7 . 20 Initial 7 | . . 7 . . Average 7 | . 23 7 . . Maximum Alert Level . | . . . . . Low Security (%) 100 | 100 100 100 . 100 Level 1 . | . . . . . Level 2 . | . . . . . Level 3 . | . . . . . Level 4 . | . . . . . Level 5 . | . . . . . High Security . | . . . . . Max Security . | . . . . . Squads Dispatched 1 | . 1 . . . Investigation . | . . . . . Extermination . | . . . . . Reinforcement 1 | . 1 . . . Assault . | . . . . . Garrison . | . . . . . Intercept . | . . . . . Construction Impeded . | . . . . . Haulers Reinforced . | . . . . . Stealth | -11 -10 -10 -10 -9 --------- Run | Scr Mat Min Exi Min Distress Signals 1 | . 1 . . . Communications Jammed . | . . . . . Distress Signals . | . . . . . Times Spotted 16 | . 3 2 . 11 Peak Tracking Total 8 | . 3 2 . 8 Tactical Retreats . | . . . . . Traps | -11 -10 -10 -10 -9 ------- Run | Scr Mat Min Exi Min Traps Triggered . | . . . . . Indirectly . | . . . . . Trap Hack Attempts . | . . . . . Triggered . | . . . . . Disarmed . | . . . . . Reprogrammed . | . . . . . Reused . | . . . . . Traps Extracted . | . . . . . Installed . | . . . . . Triggered . | . . . . . Machines | -11 -10 -10 -10 -9 ---------- Run | Scr Mat Min Exi Min Machines Disabled . | . . . . . Max in Single Turn . | . . . . . Machines Sabotaged . | . . . . . Garrisons Compromised . | . . . . . Overloaded Fab Kills . | . . . . . Fab Network Shutdowns . | . . . . . Hacking | -11 -10 -10 -10 -9 --------- Run | Scr Mat Min Exi Min Machines Accessed 6 | . 3 . 3 . Terminals 3 | . 3 . . . Fabricators . | . . . . . Repair Stations . | . . . . . Recycling Units . | . . . . . Scanalyzers . | . . . . . Garrison Access . | . . . . . Total Hacks 35 | . 9 . 26 . Successful 34 | . 8 . 26 . Failed 1 | . 1 . . . Catastrophic . | . . . . . Database Lockouts . | . . . . . Manual 1 | . . . 1 . Terminals 9 | . 9 . . . Fabricators . | . . . . . Repair Stations . | . . . . . Recycling Units . | . . . . . Scanalyzers . | . . . . . Garrison Access . | . . . . . Terminal Hacks 34 | . 8 . 26 . Record 27 | . 1 . 26 . Prototype ID Bank 3 | . 3 . . . Alert Level 2 | . 2 . . . Locate Traps 1 | . 1 . . . Zone Layout 1 | . 1 . . . Fabricator Hacks . | . . . . . Repair Station Hacks . | . . . . . Recycling Unit Hacks . | . . . . . Scanalyzer . | . . . . . Garrison Access Hacks . | . . . . . Unauthorized Hacks . | . . . . . Terminals . | . . . . . Fabricators . | . . . . . Repair Stations . | . . . . . Recycling Units . | . . . . . Scanalyzers . | . . . . . Garrison Access . | . . . . . Data Cores Recovered . | . . . . . Used . | . . . . . Hacking Detections 2 | . 2 . . . Full Trace Events . | . . . . . Feedback Events . | . . . . . Feedback Blocked . | . . . . . Robot Schematics Acquired . | . . . . . Robots Built . | . . . . . Matter . | . . . . . Time . | . . . . . Total Robot Build Rating . | . . . . . Part Schematics Acquired . | . . . . . Parts Built . | . . . . . Matter . | . . . . . Time . | . . . . . Total Part Build Rating . | . . . . . Parts Repaired . | . . . . . Time . | . . . . . Parts Recycled . | . . . . . Recycled Matter . | . . . . . Retrieved Matter . | . . . . . Retrieved Components . | . . . . . Parts Scanalyzed . | . . . . . Part Schematics Acquired . | . . . . . Parts Damaged . | . . . . . Bothacking | -11 -10 -10 -10 -9 ------------ Run | Scr Mat Min Exi Min Used RIF Installer . | . . . . . Robots Hacked . | . . . . . Non-combat . | . . . . . Combat . | . . . . . Robot Hacks Applied . | . . . . . Relay Couplers Released . | . . . . . Robots Rewired . | . . . . . Allies Hacked . | . . . . . Hacks Repelled . | . . . . . Allies | -11 -10 -10 -10 -9 -------- Run | Scr Mat Min Exi Min Total Allies 3 | . . . . 3 Largest Group 3 | . . . . 3 Highest-Rated Group 72 | . . . . 72 Highest-Rated Ally 31 | . . . . 31 Total Orders . | . . . . . Ally Attacks 3 | . . . . 3 Total Damage 63 | . . . . 63 Kills . | . . . . . Allies Corrupted . | . . . . . Allies Melted . | . . . . . Intel | -11 -10 -10 -10 -9 ------- Run | Scr Mat Min Exi Min Robot Analysis Total . | . . . . . Derelict Logs Recovered . | . . . . . Drone Launches . | . . . . . Drone Recoveries . | . . . . . Exploration | -11 -10 -10 -10 -9 ------------- Run | Scr Mat Min Exi Min Turns Passed 654 | 9 108 8 271 258 Spaces Moved 802 | 18 181 19 386 198 Core 67 | 18 42 . . 7 Treads . | . . . . . Legs 286 | . . . 95 191 Wheels . | . . . . . Hover . | . . . . . Flight 449 | . 139 19 291 . Fastest Speed 40 | 50 40 40 40 120 Average Speed 74 | 50 42 40 68 121 Slowest Speed 200 | 50 50 40 120 200 Overloaded Moves . | . . . . . Propulsion Burnouts . | . . . . . Robots Hopped 1 | . 1 . . . Cave-ins Triggered . | . . . . . Exploration Rate (%) 29 | 3 29 6 62 46 Regions Visited 4 Branch Regions 3 Pre-discovered Areas . | . . . . . Known Exits Taken . | . . . . . Unknown Exits Taken 4 | 1 1 1 1 . Scrap Searched 1 | . . . . 1 Spaces Dug . | . . . . . Terrain Destroyed . | . . . . . Melee . | . . . . . Projectile . | . . . . . AOE . | . . . . . Terrain Rammed . | . . . . . Walls Destroyed . | . . . . . Machines Disabled . | . . . . . Actions | -11 -10 -10 -10 -9 --------- Run | Scr Mat Min Exi Min Total 839 | 17 200 18 395 209 Wait . | . . . . . Move 796 | 17 178 18 385 198 Hop 1 | . 1 . . . Pick Up 13 | . 6 . 4 3 Fast Attach . | . . . . . Attach 9 | . 4 . 2 3 Detach 1 | . 1 . . . Swap . | . . . . . Drop 4 | . . . 4 . Fire 15 | . 10 . . 5 Melee . | . . . . . Ram . | . . . . . Kick . | . . . . . Crush . | . . . . . Escape Stasis . | . . . . . Rewire . | . . . . . Trap . | . . . . . Miscellaneous . | . . . . . Route ------- -11/Scrapyard -10/Materials -10/Mines -10/Exiles -9/Mines (discovered 1 exit: [*Mat]) History --------- Turn | Location | Event 3 | -11/Scrapyard | Discovered new exit (range 14) 10 | -11/Scrapyard | Entered Materials 112 | -10/Materials | Discovered new exit (range 16) 118 | -10/Materials | Entered Mines 124 | -10/Mines | Deemed a non-threat by the Exiles lab entrance 124 | -10/Mines | Discovered new exit (range 5) 126 | -10/Mines | Entered Exiles 138 | -10/Exiles | Met 8R-AWN 144 | -10/Exiles | Met EX-HEX 159 | -10/Exiles | Met EX-BIN 210 | -10/Exiles | Aligned with FarCom system 210 | -10/Exiles | Given EX-Vault access code 220 | -10/Exiles | Opened EX-Vault 226 | -10/Exiles | Found Prototype Flight Unit 265 | -10/Exiles | Warned to stay clear of 0b10 Research branches 299 | -10/Exiles | Met EX-DEC 304 | -10/Exiles | Build established: Mutant 355 | -10/Exiles | Discovered new exit (range 12) 397 | -10/Exiles | Left Exiles lab with Flying Fortress v7 397 | -10/Exiles | Entered Mines 400 | -9/Mines | Received a Mining Laser from a helpful Derelict 456 | -9/Mines | Found a hidden stash of uninstalled traps 609 | -9/Mines | Assembled infested the area 626 | -9/Mines | Discovered new exit (range 10) 634 | -9/Mines | Core integrity fell below 50% 644 | -9/Mines | Core integrity fell below 20% 655 | -9/Mines | Destroyed by as-31703 with Assembled Rifle Last Messages --------------- as-36123 destroyed. as-02603 destroyed. R-06 Scavenger collects Carbon-fiber Leg. as-97330 destroyed. The unstable cave ceiling collapses. as-02420 destroyed. Flight Unit destroyed. D-53 Grenadier destroyed. R-06 Scavenger collects Lgt. Assault Rifle. The unstable cave ceiling collapses. Hvy. EM Pulse Gun destroyed. Aluminum Leg destroyed. R-06 Scavenger collects Lgt. Ion Engine. D-53 Grenadier destroyed. The unstable cave ceiling collapses. R-06 Scavenger collects Flight Unit. The unstable cave ceiling collapses. Hvy. Assault Rifle destroyed. The unstable cave ceiling collapses. Acquired 19 matter. Map ----- +----------------------------------------------------+ | | | | | | | | | | | | | | | | | | | ?????????????????????????????????????????????????? | | ?????????????????????????????????????????????????? | | ?????????????????????????????????????????????????? | | ?????????????????????????????????????????????????? | | ?????????????????????????????????????????????????? | | ?????????????????????????????????????????????????? | | ?????????????????????????????????????????????????? | | ?????????????????????????????????????????????????? | | ?????????????????????????????????????????????????? | | ???????????????????##########???????############## | | ???????????????????# #???????# | | ???????#???????????# #???????# ############ | | ???????# ???#?????# #???????# #??????????? | | ???????# ??# ????# < """ ##???#### #??????????? | | ???????# ## ##### %= #???# #??????????? | | ??????## % #???# ## #??????????? | | ??????? a @ ##???# ## ##########?? | | ??????????# % # # ##### ## ##? | | ??????????# ## ##### [#? | | ??????????# a #??## | ! ## | | ??????????# # r #???######! # | | ??????????# ## # #????????## # | | ??????????### """ ##?????????# # | | ????????????##### """ #??????????# | | ????????????????###### """ ##?????????# # | | ?????????????????????## #?????????# # | | ??????????????????????## #?????????# # | | ???????????????????????### ##?????????# # | | ?????????????????????????### #### #?????????## # | | ???????????????????????????####??# #?????????# | | ????????????????????????????????? #?????????# | | ?????????????????????????????????###?????????# | | ?????????????????????????????????????????????# | | ?????????????????????????????????????????????# | | ????????????????????????????????????????????## && | | ??????????????????????????????????????????### & & | | ?????????????????????????????????????????## & | | ????????????????????????????????????????## | | ???????????????????????????????????????## | | ???????????????????????????????????????# | | ????????????????????????????????????# ## | +----------------------------------------------------+ Best States ------------- Heat Dissipation 25 Energy Generation 5 Energy Capacity 100 Matter Stores 100 Matter Capacity 300 Sight Range 16 Terrain Scan Density 10 Evasion (%) 62 Item Schematics ----------------- None Robot Schematics ------------------ None Fabricated ------------ Nothing Alien Tech Used ----------------- None Achievements -------------- None Challenges ------------ None Game ------ Seed QuantumDisruptionFlamer Manual? 0 Play Time 00:11:35 Cumulative 17.6 hours Start 2021.09.27 @ 01:49:42 End 2021.09.27 @ 02:01:32 Sessions 1 Manual Loads 0 Difficulty Rogue Special Mode None Game No. 35 Rogue 35 Adventurer 0 Explorer 0 Win Type - Total 0 Types 0/0/0/0/0/0/0/0/0 Lore% 25 Gallery% 25 Achievement% 19 Wizard Run 0 Options --------- ASCII 0 Keyboard 0 Movement Mouse Keybinds 0 Fullscreen 2 Font 20/Terminus Map View 66x50 Tactical HUD 0 Map Filters NONE Filters NONE Steam 1 RUN: 2413f189-b5d0-4458-a719-02cf2c7c576a